bitfinex-derivatives/quotes_ETHF0:USTF0_20240930
["timestamp","ask_amount","ask_price","bid_price","bid_amount"]
[1727708816722,0.38212,2617.1,2617.0,4.15755213]
[1727708817035,0.38212,2617.1,2617.0,4.53968213]
[1727708817227,0.38212,2617.1,2617.0,4.15755213]
[1727708817425,0.38212,2617.1,2617.0,4.53968213]
[1727708817632,0.38212,2617.1,2617.0,4.15755213]
[1727708818118,0.38212,2617.1,2617.0,4.53968213]
[1727708818525,0.38212,2617.1,2617.0,4.15755213]
[1727708818724,0.38213,2617.0,2616.9,0.38214]
[1727708821527,1.32609,2617.2,2616.9,1.1]
[1727708821731,0.38213,2617.1,2617.0,0.38213]
[1727708823328,0.38213,2617.0,2616.9,1.48213]
[1727708824332,0.3708,2617.2,2616.9,1.1]
[1727708824527,0.3708,2617.2,2617.1,1.48212]
[1727708824934,0.3708,2617.2,2617.1,5.58695932]
[1727708825939,0.7529,2617.2,2617.1,5.58695932]
[1727708826344,0.7529,2617.2,2617.1,4.48695932]
[1727708829744,0.3708,2617.2,2617.1,5.58695932]
[1727708829946,3.2078,2617.6,2617.5,0.38206]
[1727708829947,0.38206,2617.6,2617.5,0.38206]
[1727708830148,0.38206,2617.6,2617.5,1.48206]
[1727708833350,1.56094,2617.7,2617.5,1.1]
[1727708833556,0.38204,2617.6,2617.5,5.8034637]
[1727708834850,1.56093,2617.7,2617.6,0.38204]
[1727708835349,1.1789,2617.7,2617.6,0.38204]
[1727708835546,0.396,2617.7,2617.6,1.48204]
[1727708835848,0.38202,2617.9,2617.8,0.38201]
[1727708836052,0.38202,2617.9,2617.8,1.48201]
[1727708836246,0.38202,2617.9,2617.8,5.7009574]
[1727708836447,1.52329,2618.0,2617.9,0.382]
[1727708837350,0.76839,2618.0,2617.9,0.382]
[1727708837756,0.3864,2618.0,2617.9,0.382]
[1727708838758,1.50005168,2618.3,2618.2,0.38196]
[1727708838966,1.88435168,2618.4,2618.3,0.38194]
[1727708839258,1.88435168,2618.4,2618.2,1.1]
[1727708839259,3.2078,2618.5,2618.2,5.24022348]
[1727708839463,1.88194168,2618.7,2618.5,0.38191]
[1727708839671,0.38189,2618.7,2618.5,0.38191]
[1727708839862,0.38189,2618.7,2618.4,1.48192]
[1727708840057,1.165,2618.8,2618.6,1.1]
[1727708840258,1.165,2618.8,2618.7,0.3823]
[1727708840455,1.165,2618.8,2618.7,0.76418]
[1727708841061,1.165,2618.8,2618.7,0.3823]
[1727708841560,1.54687,2618.8,2618.7,0.3823]
[1727708841962,0.38191,2618.6,2618.3,2.40593]
[1727708842268,1.165,2618.8,2618.5,4.20725457]
[1727708842562,1.165,2618.8,2618.4,2.38]
[1727708842764,1.54688,2618.8,2618.5,0.38191]
[1727708842963,1.54688,2618.8,2618.6,4.20725457]
[1727708843167,1.165,2618.8,2618.6,0.3823]
[1727708843364,0.38188,2618.7,2618.6,0.3823]
[1727708844068,1.165,2618.8,2618.7,0.38188]
[1727708844377,0.3843,2618.8,2618.7,0.38188]
[1727708844564,0.76733,2619.1,2618.9,0.38185]
[1727708844763,1.17203,2619.1,2618.8,0.38186]
[1727708844968,0.7902,2619.1,2618.8,0.38186]
[1727708845269,0.7902,2619.1,2618.7,4.31313284]
[1727708845270,0.38184,2619.0,2618.7,4.31313284]
[1727708845569,0.38185,2619.0,2618.8,0.38186]
[1727708845766,0.7902,2619.1,2618.8,0.38186]
[1727708845969,0.38184,2619.0,2618.7,4.31313284]
[1727708846373,0.7902,2619.1,2618.7,4.31313284]
[1727708846568,0.38186,2618.9,2618.7,4.31313284]
[1727708846761,0.38186,2618.9,2618.8,0.38187]
[1727708847167,0.7902,2619.1,2618.7,4.31313284]
[1727708847369,0.3762,2618.8,2618.6,0.38189]
[1727708847672,0.78108,2618.7,2618.6,0.38189]
[1727708848573,0.3992,2618.7,2618.4,2.91145]
[1727708848770,0.75191,2618.6,2618.4,0.77962]
[1727708848960,0.75191,2618.6,2618.5,4.01529802]
[1727708849871,6.5692,2618.6,2618.1,0.3931]
[1727708850064,0.38195,2618.3,2617.9,3.2078]
[1727708850270,0.7963,2618.2,2618.1,0.38196]
[1727708850472,0.7963,2618.2,2618.0,6.66055862]
[1727708850671,1.17826,2618.2,2618.0,7.04252862]
[1727708850975,0.3752,2618.1,2618.0,7.04252862]
[1727708851282,0.3752,2618.1,2618.0,7.04254862]
[1727708851574,0.75717,2618.1,2618.0,6.66055862]
[1727708851780,0.75717,2618.1,2618.0,4.28055862]
[1727708851975,0.75717,2618.1,2617.9,3.5898]
[1727708852369,0.3752,2618.1,2617.8,0.3703]
[1727708852575,0.3752,2618.1,2617.8,0.75231]
[1727708852576,0.38199,2618.0,2617.8,0.75231]
[1727708852781,0.3752,2618.1,2617.6,2.38]
[1727708852980,0.75717,2618.1,2617.8,2.38]
[1727708853473,0.3752,2618.1,2617.8,2.38]
[1727708853780,0.3752,2618.1,2618.0,0.38199]
[1727708853975,0.3752,2618.1,2618.0,2.76199]
[1727708854276,12.11777,2618.6,2618.1,0.38196]
[1727708854483,0.38195,2618.3,2618.1,0.3836]
[1727708854781,1.1668,2618.5,2618.0,2.38]
[1727708854979,1.1668,2618.5,2617.8,3.2078]
[1727708854980,0.38193,2618.4,2617.8,5.96981]
[1727708855181,0.38199,2618.0,2617.8,5.96981]
[1727708855380,0.38199,2618.0,2617.9,4.43251884]
[1727708856375,4.93189,2618.5,2617.9,4.43251884]
[1727708856376,0.38198,2618.1,2617.9,4.43251884]
[1727708856682,0.38199,2618.0,2617.9,4.43251884]
[1727708859782,0.382,2618.0,2617.7,0.76562]
[1727708860086,1.1662,2617.9,2617.7,0.76562]
[1727708860387,0.95487,2618.3,2617.7,0.3836]
[1727708860685,3.2078,2618.5,2617.8,0.382]
[1727708860686,0.38199,2618.0,2617.8,0.382]
[1727708860979,1.73911,2618.2,2617.7,0.76562]
[1727708860980,0.95495,2618.1,2617.7,0.76562]
[1727708861181,0.38201,2617.9,2617.7,0.76562]
[1727708861386,0.38201,2617.9,2617.7,0.3836]
[1727708861587,0.38199,2618.0,2617.7,0.76562]
[1727708861790,0.3896,2617.8,2617.7,0.76562]
[1727708862178,0.3896,2617.8,2617.5,3.2078]
[1727708862384,0.77234,2617.7,2617.5,3.58984]
[1727708862685,0.77234,2617.7,2617.6,4.09277723]
[1727708863778,0.3903,2617.7,2617.5,3.2078]
[1727708863981,0.38204,2617.6,2617.4,0.38207]
[1727708865084,0.3903,2617.7,2617.3,0.372]
[1727708865279,0.77234,2617.7,2617.5,0.38206]
[1727708866691,0.77233,2617.7,2617.5,0.38206]
[1727708867690,0.38206,2617.5,2617.4,4.32832425]
[1727708868090,0.38206,2617.5,2617.0,0.13348115]
[1727708868091,10.20286,2617.5,2616.8,3.5851]
[1727708868296,2.38,2617.2,2616.8,3.2078]
[1727708868592,0.3957,2617.1,2616.8,4.28349636]
[1727708868792,0.38213,2617.0,2616.8,4.28349636]
[1727708868995,0.3666,2617.0,2616.8,4.66565636]
[1727708869293,0.3666,2617.0,2616.8,4.28349636]
[1727708869495,0.38215,2616.9,2616.8,4.28349636]
[1727708869697,0.74874,2617.0,2616.8,4.28349636]
[1727708869990,0.3666,2617.0,2616.8,4.66564636]
[1727708870189,0.3666,2617.0,2616.9,0.38215]
[1727708870393,0.74874,2617.0,2616.8,4.65349636]
[1727708870587,0.3666,2617.0,2616.8,4.28349636]
[1727708870786,0.74874,2617.0,2616.8,4.28349636]
[1727708871490,0.38215,2616.9,2616.8,4.28349636]
[1727708871689,0.38216,2616.8,2616.7,3.2078]
[1727708873489,0.38216,2616.8,2616.5,0.7878]
[1727708873893,0.3689,2616.7,2616.5,0.7878]
[1727708874390,0.3689,2616.7,2616.5,0.4056]
[1727708874596,0.75109,2616.7,2616.3,5.97002]
[1727708874798,0.397,2616.6,2616.3,3.2078]
[1727708874988,0.7792,2616.6,2616.3,3.59003]
[1727708875194,0.4038,2616.5,2616.3,3.59003]
[1727708876598,0.78601,2616.5,2616.3,3.2078]
[1727708876790,0.4038,2616.5,2616.3,3.59003]
[1727708877192,0.78601,2616.5,2616.3,3.2078]
[1727708877599,0.78601,2616.5,2616.3,3.59003]
[1727708878098,0.78601,2616.5,2616.3,0.38223]
[1727708878099,0.4038,2616.5,2616.3,0.38223]
[1727708878900,0.4038,2616.5,2616.1,2.7819]
[1727708879197,0.78601,2616.5,2616.2,4.38425978]
[1727708880101,0.78601,2616.5,2616.2,4.00200978]
[1727708880102,0.4038,2616.5,2616.2,4.00200978]
[1727708880303,0.78601,2616.5,2616.3,0.38223]
[1727708881197,0.38222,2616.4,2616.2,4.00200978]
[1727708881404,0.38222,2616.4,2616.2,4.38423978]
[1727708881598,0.4038,2616.5,2616.3,0.38223]
[1727708881798,0.78602,2616.5,2616.3,0.38223]
[1727708882905,0.38222,2616.4,2616.3,0.38223]
[1727708883294,0.4038,2616.5,2616.1,0.4019]
[1727708883607,0.9556,2616.3,2615.9,3.59009]
[1727708883904,0.38227,2616.1,2616.0,0.38228]
[1727708884202,0.38226,2616.1,2616.0,0.38228]
[1727708884509,0.38228,2616.0,2615.9,3.59009]
[1727708884710,0.38228,2616.0,2615.9,3.2078]
[1727708884915,1.16128,2616.1,2615.9,3.2078]
[1727708885205,0.38228,2616.0,2615.9,3.2078]
[1727708885402,0.779,2616.1,2615.8,0.3818]
[1727708885596,0.779,2616.1,2615.8,0.7641]
[1727708885799,0.38229,2616.0,2615.8,0.3818]
[1727708886403,0.38229,2615.9,2615.8,0.3818]
[1727708886604,0.38229,2615.9,2615.8,0.76411]
[1727708886798,0.38229,2615.9,2615.7,0.38232]
[1727708887096,0.3823,2615.9,2615.7,0.38231]
[1727708887907,0.3823,2615.9,2615.7,0.38232]
[1727708888104,1.73467,2616.1,2615.8,0.3823]
[1727708888105,0.38228,2616.0,2615.8,0.3823]
[1727708888306,1.16127,2616.1,2615.9,0.38229]
[1727708888904,0.38228,2616.0,2615.9,0.38229]
[1727708889106,0.779,2616.1,2615.9,0.38229]
[1727708889308,1.16127,2616.1,2615.9,0.38229]
[1727708890111,0.779,2616.1,2615.7,2.38]
[1727708890312,0.3852,2616.4,2616.0,3.2078]
[1727708890507,4.5586,2616.5,2616.3,0.38223]
[1727708890705,0.3866,2616.5,2616.1,0.3707]
[1727708890902,0.38224,2616.3,2616.1,0.3707]
[1727708891212,0.3781,2616.2,2616.0,4.30644371]
[1727708891512,0.3781,2616.2,2615.8,0.3707]
[1727708891709,0.76747,2616.1,2616.0,0.38228]
[1727708891914,0.3852,2616.1,2616.0,0.38228]
[1727708892306,0.38224,2616.3,2616.2,0.38225]
[1727708892605,1.1555,2616.5,2615.9,4.2360015]
[1727708892801,1.1555,2616.5,2616.3,0.38223]
[1727708893006,1.1555,2616.5,2616.0,0.95568]
[1727708893007,1.1555,2616.5,2616.1,0.95566]
[1727708893404,1.53771,2616.5,2616.4,0.38222]
[1727708893613,1.1555,2616.5,2616.2,0.3795]
[1727708894019,0.38223,2616.3,2616.2,0.3795]
[1727708894215,0.38223,2616.3,2616.2,0.38225]
[1727708894422,3.8224,2616.3,2615.9,0.3795]
[1727708894620,0.38226,2616.2,2616.1,0.38225]
[1727708896820,0.38226,2616.2,2615.9,0.3795]
[1727708896821,0.95563,2616.2,2615.9,0.3795]
[1727708897017,0.76858,2616.1,2616.0,0.38227]
[1727708897612,0.3863,2616.1,2616.0,0.38227]
[1727708898216,0.38226,2616.2,2616.1,0.38225]
[1727708898412,0.3727,2616.3,2615.9,0.3795]
[1727708898624,0.38228,2616.1,2616.0,4.81208324]
[1727708899017,0.38226,2616.2,2616.1,0.38225]
[1727708899524,0.3727,2616.3,2616.0,4.81208324]
[1727708899525,0.38226,2616.1,2616.0,4.81208324]
[1727708900525,0.38226,2616.2,2616.1,0.38225]
[1727708902020,0.38228,2616.1,2616.0,0.38227]
[1727708902623,0.38226,2616.2,2616.1,0.38225]
[1727708903030,4.20466,2616.2,2616.1,0.38225]
[1727708903330,6.2024,2616.2,2615.6,0.3853]
[1727708903522,0.3823,2615.9,2615.8,0.38229]
[1727708904036,1.5288,2615.9,2615.8,0.38229]
[1727708904219,1.5288,2615.9,2615.7,0.38232]
[1727708905322,1.5288,2615.9,2615.6,0.3866]
[1727708905523,1.1465,2615.9,2615.8,0.38231]
[1727708905936,1.1465,2615.9,2615.4,4.3012267]
[1727708906123,1.5288,2615.9,2615.7,0.78121]
[1727708906325,1.1465,2615.9,2615.7,0.3989]
[1727708906624,1.1465,2615.9,2615.8,0.38231]
[1727708906625,0.7724,2615.9,2615.8,0.38231]
[1727708906833,0.3989,2615.9,2615.8,0.38231]
[1727708907430,0.3989,2615.9,2615.7,0.3989]
[1727708907732,0.78119,2615.9,2615.7,0.3989]
[1727708907936,0.78119,2615.9,2615.8,0.38231]
[1727708908130,0.3989,2615.9,2615.8,0.38231]
[1727708908629,0.78119,2615.9,2615.8,0.38231]
[1727708908829,0.3989,2615.9,2615.8,0.38231]
[1727708909029,0.78119,2615.9,2615.8,0.38231]
[1727708909232,0.3989,2615.9,2615.8,0.38231]
[1727708909422,0.78119,2615.9,2615.8,0.38231]
[1727708910028,0.3989,2615.9,2615.8,0.38231]
[1727708910227,0.78119,2615.9,2615.8,0.38231]
[1727708910730,0.78119,2615.9,2615.7,0.78122]
[1727708910731,0.38231,2615.8,2615.7,0.78122]
[1727708912231,0.3989,2615.9,2615.7,0.3989]
[1727708912437,0.38231,2615.8,2615.7,0.78121]
[1727708913536,0.7812,2615.9,2615.8,0.38231]
[1727708914037,0.3989,2615.9,2615.7,0.3989]
[1727708914339,0.3989,2615.9,2615.7,0.78121]
[1727708914340,0.38231,2615.8,2615.7,0.78121]
[1727708916431,0.38231,2615.8,2615.7,0.3989]
[1727708916638,0.38231,2615.8,2615.7,0.78122]
[1727708917040,1.49506593,2616.0,2615.7,0.3989]
[1727708917338,1.87735593,2616.0,2615.9,0.38229]
[1727708917945,0.38229,2616.0,2615.9,0.38229]
[1727708918246,1.88386458,2616.0,2615.9,0.38229]
[1727708918637,0.38229,2616.0,2615.9,0.38229]
[1727708919542,2.77962125,2616.1,2615.7,0.3989]
[1727708919739,1.88446364,2615.9,2615.8,0.3823]
[1727708920633,0.3823,2615.9,2615.8,0.3823]
[1727708922039,0.38231,2615.8,2615.7,0.78122]
[1727708922244,1.8850137,2615.8,2615.7,0.78122]
[1727708922546,0.38231,2615.8,2615.7,0.3989]
[1727708923439,0.38231,2615.8,2615.5,0.99422339]
[1727708923440,0.38234,2615.6,2615.5,0.99422339]
[1727708923639,0.38235,2615.5,2615.4,3.2078]
[1727708923949,2.77657125,2615.5,2615.4,3.2078]
[1727708924447,0.78315,2615.5,2615.4,3.2078]
[1727708924648,2.77657125,2615.5,2615.4,3.2078]
[1727708924949,0.38238,2615.3,2615.1,1.37662339]
[1727708925151,0.3799,2615.2,2615.1,1.37662339]
[1727708925354,0.7728,2615.2,2615.1,1.37662339]
[1727708926241,2.2760257,2615.2,2615.1,0.3824]
[1727708926443,0.7728,2615.2,2615.1,0.3824]
[1727708926642,5.0484257,2615.2,2615.0,1.77644339]
[1727708926943,5.0484257,2615.2,2615.0,0.38242]
[1727708927148,1.5032257,2615.1,2615.0,0.38242]
[1727708927341,5.0484257,2615.2,2615.0,0.38242]
[1727708927844,3.2078,2615.1,2614.8,0.99422339]
[1727708928064,0.38247,2614.7,2614.6,0.99422339]
[1727708928241,0.38247,2614.7,2614.2,3.2078]
[1727708928242,6.2148,2614.7,2614.2,0.78323]
[1727708928439,4.2742196,2614.5,2614.2,0.78323]
[1727708928643,1.8684096,2614.4,2614.2,0.4007]
[1727708928850,3.8917096,2614.3,2613.9,0.99422339]
[1727708929152,1.5017096,2614.0,2613.6,0.59516304]
[1727708929351,3.52989,2613.9,2613.6,0.97778304]
[1727708929545,2.39,2613.7,2613.6,0.59516304]
[1727708929746,2.77261,2613.7,2613.6,0.59516304]
[1727708929948,8.10113736,2613.7,2613.6,0.59516304]
[1727708930146,8.10113736,2613.7,2612.5,4.75894678]
[1727708930147,12.2164,2613.7,2612.7,4.20202339]
[1727708930353,2.39,2613.2,2613.0,0.38271]
[1727708930552,2.39,2613.2,2612.9,4.41250665]
[1727708930850,2.39,2613.0,2612.8,0.38274]
[1727708931352,2.39,2613.0,2612.9,4.39622013]
[1727708931757,2.39,2613.0,2612.7,0.38275]
[1727708931948,2.39,2613.0,2612.6,0.76437]
[1727708932150,2.77272,2613.0,2612.7,4.39622013]
[1727708932352,2.39,2612.8,2612.7,3.78702013]
[1727708932555,2.39,2612.8,2611.7,3.2078]
[1727708932556,8.39,2612.8,2611.7,3.2078]
[1727708932752,2.39,2612.2,2611.8,0.38288]
[1727708932950,2.39,2611.9,2611.7,4.01344392]
[1727708933157,2.39,2611.9,2611.6,0.3986]
[1727708933453,2.39,2611.9,2611.7,0.48083319]
[1727708933846,2.39,2611.9,2611.8,0.38289]
[1727708935452,0.38289,2611.8,2611.7,0.48083319]
[1727708935647,0.38289,2611.8,2611.1,3.2078]
[1727708935648,3.8288,2611.8,2611.1,3.39538667]
[1727708935962,3.8288,2611.8,2610.7,0.38305]
[1727708935963,2.39,2611.2,2610.7,0.38305]
[1727708936155,2.39,2610.8,2610.7,0.38305]
[1727708936348,2.39,2610.8,2610.3,3.2078]
[1727708936349,2.39,2610.8,2610.4,4.07619165]
[1727708936550,2.39,2610.8,2610.5,0.38307]
[1727708936855,2.39,2610.8,2610.6,0.38306]
[1727708937045,2.39,2610.8,2610.5,0.38307]
[1727708937046,2.77304,2610.8,2610.5,0.38307]
[1727708937245,2.77305,2610.8,2610.5,0.38308]
[1727708937750,2.39,2610.8,2610.4,4.07619165]
[1727708937951,2.77305,2610.8,2610.5,0.38307]
[1727708938751,2.77305,2610.8,2610.4,4.07619165]
[1727708938944,0.38306,2610.7,2610.4,0.38309]
[1727708939147,2.39,2610.8,2610.3,0.3831]
[1727708939358,2.39,2610.6,2610.2,0.19440592]
[1727708939558,2.39,2610.6,2610.4,0.38308]
[1727708939854,2.39,2610.8,2610.5,0.38308]
[1727708940055,2.39,2611.0,2610.7,0.38305]
[1727708940357,5.5978,2611.2,2610.6,4.37364947]
[1727708940555,2.39,2611.0,2610.4,3.2078]
[1727708940857,3.2078,2611.2,2610.5,4.37366947]
[1727708940858,2.39,2610.7,2610.5,4.37366947]
[1727708941155,0.38303,2610.9,2610.5,0.38308]
[1727708941358,2.39,2611.0,2610.3,3.99058947]
[1727708941664,0.38306,2610.7,2610.3,0.3831]
[1727708941852,0.38305,2610.8,2610.4,0.3831]
[1727708942254,0.38306,2610.7,2610.3,0.3831]
[1727708942455,3.2078,2610.9,2610.2,4.15937942]
[1727708942647,0.38303,2610.9,2610.2,4.15937942]
[1727708942850,0.38303,2610.9,2610.5,0.38307]
[1727708943050,0.38303,2610.9,2610.6,0.38307]
[1727708943250,0.38304,2610.8,2610.5,0.38307]
[1727708943456,0.38304,2610.8,2610.2,4.15937942]
[1727708943457,2.39,2611.0,2610.2,4.15937942]
[1727708943657,2.39,2611.0,2610.5,0.38307]
[1727708943861,0.38305,2610.8,2610.5,0.38307]
[1727708944354,0.38305,2610.8,2610.1,5.9703]
[1727708944355,2.77306,2610.7,2610.4,0.3831]
[1727708945563,0.38304,2610.8,2610.1,5.9703]
[1727708945759,0.38304,2610.8,2610.6,0.38307]
[1727708945954,0.38304,2610.8,2610.5,0.38307]
[1727708947264,0.38303,2610.9,2610.7,0.38305]
[1727708947558,5.5978,2611.2,2610.4,3.2078]
[1727708947763,0.383,2611.1,2610.4,3.2078]
[1727708947961,11.5625,2611.4,2611.1,0.38298]
[1727708947962,0.38297,2611.3,2611.1,0.38298]
[1727708948152,0.38301,2611.0,2610.5,6.83651812]
[1727708948358,2.77303,2610.9,2610.6,0.38306]
[1727708948553,2.39,2610.9,2610.4,3.2078]
[1727708948767,2.39,2610.9,2610.8,0.38304]
[1727708949062,2.77303,2610.9,2610.7,0.38305]
[1727708949263,2.39,2610.9,2610.4,3.2078]
[1727708949461,2.39,2610.9,2610.8,0.38304]
[1727708949658,2.39,2610.9,2610.7,0.38304]
[1727708949858,2.39,2610.9,2610.8,0.38304]
[1727708950070,0.383,2611.1,2610.9,0.38302]
[1727708950765,3.2078,2611.3,2610.7,3.2078]
[1727708950962,2.7895,2611.4,2610.7,3.2078]
[1727708950963,0.01,2611.4,2610.7,5.5978]
[1727708951163,0.01,2611.4,2610.8,5.66125644]
[1727708951558,0.39295,2611.4,2611.2,0.38297]
[1727708951864,0.39295,2611.4,2610.8,5.66125644]
[1727708951865,0.01,2611.4,2611.3,0.38297]
[1727708952168,0.01,2611.4,2611.3,4.24645321]
[1727708952359,0.01,2611.4,2611.3,8.07605321]
[1727708952759,0.01,2611.4,2611.3,8.47575321]
[1727708954062,4.172,2612.0,2611.3,14.09278321]
[1727708954269,5.5978,2612.1,2611.3,14.09278321]
[1727708954270,2.39,2612.1,2611.9,0.38287]
[1727708954571,3.2078,2612.6,2612.5,0.38279]
[1727708954869,0.95686,2612.9,2612.3,3.2078]
[1727708954870,0.38275,2612.8,2612.3,3.2078]
[1727708955061,0.95686,2612.9,2612.1,0.95713]
[1727708955264,0.3828,2612.5,2612.3,0.38281]
[1727708955469,0.38281,2612.4,2612.2,0.38282]
[1727708955772,2.7619,2612.8,2612.1,4.38018644]
[1727708955964,0.38276,2612.7,2612.5,0.38278]
[1727708956277,5.5978,2613.0,2612.3,3.2078]
[1727708956568,0.38273,2612.9,2612.7,0.38276]
[1727708956869,0.38273,2612.9,2612.7,0.38275]
[1727708957765,0.38273,2612.9,2612.6,0.38276]
[1727708957964,3.2078,2613.1,2612.5,0.38278]
[1727708957965,0.38276,2612.8,2612.5,0.38278]
[1727708958171,2.39,2613.0,2612.5,0.38278]
[1727708958475,0.38276,2612.7,2612.5,0.38278]
[1727708958664,4.16447,2613.4,2612.6,3.2078]
[1727708958868,0.38273,2613.0,2612.7,0.38276]
[1727708959065,0.38274,2612.9,2612.7,0.38276]
[1727708959566,2.39,2613.1,2612.3,0.95703]
[1727708959766,0.38271,2613.1,2612.9,0.38273]
[1727708960269,0.38274,2612.9,2612.7,0.38275]
[1727708960572,2.77271,2613.1,2612.9,0.38273]
[1727708961076,0.38274,2612.9,2612.7,0.38275]
[1727708961368,0.38274,2612.9,2612.4,0.38279]
[1727708961369,0.38277,2612.6,2612.4,0.38279]
[1727708961760,0.38275,2612.8,2612.6,0.38277]
[1727708962171,2.7598,2612.9,2612.6,0.38277]
[1727708962362,0.38275,2612.8,2612.6,0.38277]
[1727708962973,0.95687,2612.8,2612.1,3.6038]
[1727708963163,0.95687,2612.8,2612.3,0.38281]
[1727708963164,0.3828,2612.5,2612.3,0.38281]
[1727708963370,2.39,2612.6,2612.1,3.6038]
[1727708963667,0.38283,2612.2,2612.1,3.2078]
[1727708963857,0.38282,2612.3,2612.1,3.59064]
[1727708964063,2.7598,2612.9,2612.1,3.2078]
[1727708964263,2.7598,2612.9,2612.3,0.38281]
[1727708964264,0.3828,2612.5,2612.3,0.38281]
[1727708964767,2.39,2612.6,2612.1,3.2078]
[1727708964961,2.39,2612.6,2612.2,0.38283]
[1727708964962,0.3828,2612.5,2612.2,0.38283]
[1727708965158,0.3828,2612.5,2612.1,3.2078]
[1727708965574,2.39,2612.6,2611.7,4.16505]
[1727708965769,0.38283,2612.3,2612.2,0.38282]
[1727708966371,2.39,2612.4,2611.7,3.2078]
[1727708966570,2.39,2612.1,2611.5,1.75533]
[1727708966773,0.38286,2612.0,2611.9,0.38287]
[1727708966967,0.38286,2612.0,2611.8,0.38288]
[1727708967168,0.38286,2612.0,2611.7,0.38291]
[1727708967373,2.39,2612.1,2611.6,4.06861109]
[1727708967660,0.38287,2612.0,2611.7,0.38291]
[1727708967862,0.38287,2612.0,2611.6,4.06861109]
[1727708968074,2.39,2612.1,2611.6,4.06861109]
[1727708968376,0.38286,2612.1,2611.9,0.38287]
[1727708968568,0.38285,2612.1,2611.8,0.38288]
[1727708968771,0.38288,2611.9,2611.8,0.38288]
[1727708969075,0.38288,2611.9,2611.4,4.16517]
[1727708969272,0.38288,2611.9,2611.8,0.38289]
[1727708970073,2.771,2612.1,2611.7,0.3829]
[1727708970074,0.38289,2611.8,2611.7,0.3829]
[1727708970370,3.72815,2612.1,2611.4,3.2078]
[1727708970676,0.38288,2611.9,2611.8,0.38289]
[1727708970868,0.38288,2611.9,2611.4,3.2078]
[1727708970869,0.3829,2611.8,2611.7,0.3829]
[1727708971065,3.72815,2612.1,2611.4,3.2078]
[1727708971266,0.38289,2611.9,2611.8,0.38289]
[1727708972169,3.72815,2612.1,2611.4,3.2078]
[1727708972378,3.72815,2612.1,2611.4,4.16516]
[1727708972569,0.38289,2611.9,2611.8,0.38289]
[1727708973377,0.38287,2612.0,2611.9,0.38287]
[1727708973570,3.72815,2612.1,2611.5,0.95733]
[1727708973869,0.381,2612.1,2611.6,0.53136398]
[1727708974066,0.38287,2612.0,2611.9,0.38286]
[1727708974267,0.381,2612.1,2611.5,0.95733]
[1727708974477,1.33814,2612.1,2611.4,3.6131]
[1727708974674,0.3829,2611.8,2611.7,0.3829]
[1727708975373,6.2188,2611.8,2610.9,5.15955339]
[1727708975568,2.39,2611.5,2610.9,3.2078]
[1727708975772,2.39,2611.5,2611.2,0.38297]
[1727708975773,0.38297,2611.3,2611.2,0.38297]
[1727708976078,0.38299,2611.2,2611.1,0.38298]
[1727708976372,0.38297,2611.3,2611.2,0.38297]
[1727708976877,0.38299,2611.2,2611.1,0.38299]
[1727708977176,1.33539,2611.4,2610.8,0.7961]
[1727708977371,1.33539,2611.4,2610.7,0.38305]
[1727708977372,0.38303,2610.9,2610.7,0.38305]
[1727708977675,0.38301,2611.0,2610.8,0.38303]
[1727708977879,2.39,2611.2,2610.9,0.38302]
[1727708978073,0.38301,2611.1,2610.9,0.38302]
[1727708979183,0.38298,2611.2,2610.6,3.2078]
[1727708979376,2.768,2611.4,2611.2,0.38298]
[1727708979377,0.76096,2611.4,2611.2,0.38298]
[1727708979678,3.8296,2611.3,2611.2,0.38298]
[1727708980880,0.38293,2611.6,2611.5,0.38294]
[1727708981068,0.4028,2611.8,2611.1,0.95749]
[1727708981270,3.59067,2612.0,2611.8,0.38288]
[1727708981473,0.38288,2611.9,2611.8,0.38288]
[1727708982083,2.7812,2612.1,2611.5,0.7607]
[1727708982279,0.38288,2611.9,2611.8,0.38289]
[1727708982676,2.7812,2612.1,2611.5,0.7607]
[1727708982879,0.77405,2612.1,2612.0,0.38286]
[1727708983081,0.01,2612.1,2612.0,0.38286]
[1727708986280,0.01,2612.1,2611.6,9.92002143]
[1727708986578,0.01,2612.1,2611.7,0.3829]
[1727708986579,0.38288,2611.9,2611.7,0.3829]
[1727708986775,0.01,2612.1,2611.7,0.3829]
[1727708986776,0.38286,2612.0,2611.7,0.3829]
[1727708986975,0.3829,2611.8,2611.6,4.70513143]
[1727708987880,0.3829,2611.8,2611.6,0.38292]
[1727708988078,0.95716,2612.0,2611.5,0.3713]
[1727708988079,0.3758,2611.9,2611.5,0.3713]
[1727708988281,0.3758,2611.9,2611.7,0.3829]
[1727708988282,0.38289,2611.8,2611.7,0.3829]
[1727708988583,0.38292,2611.7,2611.5,0.75422]
[1727708988777,0.3758,2611.9,2611.5,0.75422]
[1727708988778,0.38292,2611.6,2611.5,0.75423]
[1727708989086,0.38291,2611.7,2611.6,0.38291]
[1727708989284,0.38292,2611.6,2611.5,0.75423]
[1727708989487,0.38289,2611.8,2611.5,0.38292]
[1727708989778,0.38292,2611.6,2611.5,0.38294]
[1727708989978,1.33301,2611.9,2611.6,0.38292]
[1727708989979,0.38292,2611.7,2611.6,0.38292]
[1727708990182,0.38294,2611.5,2611.2,0.4024]
[1727708990374,0.95724,2611.8,2611.3,4.38423324]
[1727708990576,0.38293,2611.6,2611.5,0.38293]
[1727708990784,0.3758,2611.9,2611.2,0.4024]
[1727708991273,0.3829,2611.8,2611.7,0.3829]